[Event "Live Chess"]
[Site "Chess.com"]
[Date "2023.05.21"]
[Round "-"]
[White "ClassyChameleon"]
[Black "Fazer180"]
[Result "1-0"]
[WhiteElo "1072"]
[BlackElo "1745"]
[TimeControl "300"]
[EndTime "16:49:10 PDT"]
[Termination "ClassyChameleon won on time"]

1. e4 {[%clk 0:04:57.4]} 1... e6 {[%clk 0:04:57.5]} 2. Nf3 {[%clk 0:04:56.2]}
2... d5 {[%clk 0:04:56.6]} 3. d3 {[%clk 0:04:51.4]} 3... c5 {[%clk 0:04:49]} 4.
exd5 {[%clk 0:04:45.7]} 4... exd5 {[%clk 0:04:46.4]} 5. Ne5 {[%clk 0:04:43.6]}
5... Bd6 {[%clk 0:04:37]} 6. Bf4 {[%clk 0:04:41.4]} 6... Qe7 {[%clk 0:04:31.5]}
7. Qe2 {[%clk 0:04:39.4]} 7... Nf6 {[%clk 0:04:25.6]} 8. Nc3 {[%clk 0:04:21.8]}
8... O-O {[%clk 0:04:20]} 9. O-O-O {[%clk 0:04:18.7]} 9... Re8 {[%clk
0:04:13.5]} 10. d4 {[%clk 0:03:48.8]} 10... cxd4 {[%clk 0:04:09.8]} 11. Rxd4
{[%clk 0:03:47.7]} 11... Bxe5 {[%clk 0:04:05.9]} 12. Bxe5 {[%clk 0:03:46.2]}
12... Qxe5 {[%clk 0:04:04.4]} 13. Qxe5 {[%clk 0:03:44.4]} 13... Rxe5 {[%clk
0:04:04.3]} 14. Bb5 {[%clk 0:03:40]} 14... Nc6 {[%clk 0:03:56.1]} 15. Bxc6
{[%clk 0:03:38.7]} 15... bxc6 {[%clk 0:03:53.9]} 16. Rhd1 {[%clk 0:03:38.2]}
16... Bf5 {[%clk 0:03:38.9]} 17. f4 {[%clk 0:03:35.1]} 17... Re7 {[%clk
0:03:32.2]} 18. Na4 {[%clk 0:03:27.1]} 18... Nd7 {[%clk 0:03:25.7]} 19. h3
{[%clk 0:03:22.2]} 19... Rae8 {[%clk 0:03:19.5]} 20. b3 {[%clk 0:03:18.5]} 20...
Re2 {[%clk 0:03:12.2]} 21. g4 {[%clk 0:03:16.3]} 21... Bxc2 {[%clk 0:02:52.1]}
22. R1d2 {[%clk 0:03:13.6]} 22... Rxd2 {[%clk 0:02:47.1]} 23. Kxd2 {[%clk
0:03:12.2]} 23... Be4 {[%clk 0:02:33.1]} 24. Nc3 {[%clk 0:02:50.2]} 24... Nc5
{[%clk 0:02:15.2]} 25. h4 {[%clk 0:02:41.9]} 25... Ne6 {[%clk 0:02:10.3]} 26.
Ra4 {[%clk 0:02:36.6]} 26... Nxf4 {[%clk 0:01:58.5]} 27. Rxa7 {[%clk 0:02:35]}
27... Ng6 {[%clk 0:01:46.9]} 28. h5 {[%clk 0:02:31.8]} 28... Ne5 {[%clk
0:01:45.2]} 29. g5 {[%clk 0:02:27.1]} 29... Bf3 {[%clk 0:01:42.7]} 30. h6 {[%clk
0:02:15.1]} 30... gxh6 {[%clk 0:01:41.4]} 31. gxh6 {[%clk 0:02:14.5]} 31... d4
{[%clk 0:01:34.7]} 32. Ne2 {[%clk 0:02:09.2]} 32... Bxe2 {[%clk 0:01:32.1]} 33.
Kxe2 {[%clk 0:02:08.9]} 33... Kf8 {[%clk 0:01:21.9]} 34. Kd2 {[%clk 0:02:06.1]}
34... Ng4 {[%clk 0:01:15.2]} 35. Kd3 {[%clk 0:02:03.4]} 35... c5 {[%clk
0:01:13]} 36. a4 {[%clk 0:02:02]} 36... Nxh6 {[%clk 0:01:10.7]} 37. a5 {[%clk
0:02:00.8]} 37... Rb8 {[%clk 0:01:05.7]} 38. Kc4 {[%clk 0:01:57.6]} 38... Nf5
{[%clk 0:01:01.4]} 39. Kxc5 {[%clk 0:01:52.5]} 39... Rxb3 {[%clk 0:00:59.7]} 40.
a6 {[%clk 0:01:48.3]} 40... Rc3+ {[%clk 0:00:52.5]} 41. Kb4 {[%clk 0:01:45.2]}
41... Rc8 {[%clk 0:00:46]} 42. Rb7 {[%clk 0:01:38]} 42... Nd6 {[%clk 0:00:41.4]}
43. Rd7 {[%clk 0:01:34.4]} 43... Nf5 {[%clk 0:00:37.5]} 44. a7 {[%clk
0:01:32.3]} 44... Kg7 {[%clk 0:00:34.6]} 45. Kb5 {[%clk 0:01:25.3]} 45... Ra8
{[%clk 0:00:24.1]} 46. Kb6 {[%clk 0:01:23]} 46... Ne7 {[%clk 0:00:19.8]} 47.
Rxe7 {[%clk 0:01:15.2]} 47... Rd8 {[%clk 0:00:17.9]} 48. Kb7 {[%clk 0:01:11.3]}
48... d3 {[%clk 0:00:16.7]} 49. a8=Q {[%clk 0:01:10.4]} 49... Rxa8 {[%clk
0:00:14.6]} 50. Kxa8 {[%clk 0:01:10.1]} 50... d2 {[%clk 0:00:13.9]} 51. Rd7
{[%clk 0:01:09.7]} 51... d1=Q {[%clk 0:00:12.7]} 52. Rxd1 {[%clk 0:01:08.9]}
52... h5 {[%clk 0:00:11]} 53. Kb7 {[%clk 0:01:07.8]} 53... h4 {[%clk 0:00:10.9]}
54. Kc6 {[%clk 0:01:07.4]} 54... Kg6 {[%clk 0:00:10.2]} 55. Kd5 {[%clk
0:01:04.8]} 55... Kg5 {[%clk 0:00:10.1]} 56. Ke4 {[%clk 0:01:04.2]} 56... f5+
{[%clk 0:00:09]} 57. Kf3 {[%clk 0:01:03]} 57... h3 {[%clk 0:00:07.4]} 58. Kg3
{[%clk 0:01:01.2]} 58... f4+ {[%clk 0:00:06.6]} 59. Kxh3 {[%clk 0:01:00.5]}
59... Kf5 {[%clk 0:00:06.1]} 60. Kg2 {[%clk 0:00:59.1]} 60... Ke4 {[%clk
0:00:05.3]} 61. Re1+ {[%clk 0:00:57.7]} 61... Kd3 {[%clk 0:00:03.7]} 62. Kf3
{[%clk 0:00:56.7]} 62... Kd2 {[%clk 0:00:02]} 63. Re4 {[%clk 0:00:56.3]} 63...
Kd3 {[%clk 0:00:01.2]} 64. Rxf4 {[%clk 0:00:55.9]} 1-0

[Event "Live Chess"]
[Site "Chess.com"]
[Date "2023.05.21"]
[Round "-"]
[White "Missedidea"]
[Black "luckywookie"]
[Result "1-0"]
[WhiteElo "1815"]
[BlackElo "767"]
[TimeControl "300"]
[EndTime "16:49:11 PDT"]
[Termination "Missedidea won on time"]

1. d4 {[%clk 0:04:58.5]} 1... d5 {[%clk 0:04:58.8]} 2. c4 {[%clk 0:04:56.8]}
2... c6 {[%clk 0:04:57.2]} 3. Nf3 {[%clk 0:04:54.7]} 3... Bg4 {[%clk 0:04:50.3]}
4. Ne5 {[%clk 0:04:52.7]} 4... Bf5 {[%clk 0:04:42]} 5. Nc3 {[%clk 0:04:50.1]}
5... f6 {[%clk 0:04:34.9]} 6. Nf3 {[%clk 0:04:47]} 6... e6 {[%clk 0:04:27.9]} 7.
Bf4 {[%clk 0:04:34.6]} 7... Nd7 {[%clk 0:04:04.8]} 8. cxd5 {[%clk 0:04:32.5]}
8... cxd5 {[%clk 0:03:58.9]} 9. e3 {[%clk 0:04:30.4]} 9... Rc8 {[%clk
0:03:57.5]} 10. Bb5 {[%clk 0:04:26]} 10... Bb4 {[%clk 0:03:46.6]} 11. O-O {[%clk
0:04:22.3]} 11... Bxc3 {[%clk 0:03:45.6]} 12. bxc3 {[%clk 0:04:20.1]} 12... Ne7
{[%clk 0:03:42.8]} 13. Nh4 {[%clk 0:03:53.8]} 13... a6 {[%clk 0:03:21.2]} 14.
Nxf5 {[%clk 0:03:49.9]} 14... Nxf5 {[%clk 0:03:19.6]} 15. Ba4 {[%clk 0:03:38.6]}
15... b5 {[%clk 0:03:15.2]} 16. Bc2 {[%clk 0:03:36.1]} 16... Rxc3 {[%clk
0:03:12.7]} 17. Qd2 {[%clk 0:03:24.7]} 17... b4 {[%clk 0:03:05.5]} 18. Bxf5
{[%clk 0:03:14.2]} 18... exf5 {[%clk 0:03:03.3]} 19. Rac1 {[%clk 0:03:10.1]}
19... Qc8 {[%clk 0:02:47]} 20. Bd6 {[%clk 0:03:06.3]} 20... Nb6 {[%clk
0:02:42.8]} 21. Bxb4 {[%clk 0:03:00.6]} 21... Rxc1 {[%clk 0:02:38.7]} 22. Rxc1
{[%clk 0:02:58.5]} 22... Nc4 {[%clk 0:02:36.6]} 23. Qd1 {[%clk 0:02:50.6]} 23...
Qb7 {[%clk 0:02:27.1]} 24. Bc5 {[%clk 0:02:29.5]} 24... Kd7 {[%clk 0:01:50.8]}
25. Rb1 {[%clk 0:02:21.6]} 25... Qc6 {[%clk 0:01:46]} 26. Qf3 {[%clk 0:02:12.1]}
26... Ke6 {[%clk 0:01:32]} 27. Qg3 {[%clk 0:02:01.7]} 27... g5 {[%clk
0:00:53.3]} 28. h4 {[%clk 0:01:54.8]} 28... Rg8 {[%clk 0:00:42.3]} 29. hxg5
{[%clk 0:01:50.1]} 29... Rxg5 {[%clk 0:00:40.4]} 30. Qh3 {[%clk 0:01:46.5]}
30... h5 {[%clk 0:00:24.3]} 31. f4 {[%clk 0:01:43.9]} 31... Rg6 {[%clk
0:00:13.7]} 32. Qxh5 {[%clk 0:01:42.1]} 32... Nxe3 {[%clk 0:00:12.7]} 33. Qxg6
{[%clk 0:01:35.2]} 33... Qa4 {[%clk 0:00:09.6]} 34. Qe8+ {[%clk 0:01:29.6]}
34... Qxe8 {[%clk 0:00:04.2]} 35. Rb6+ {[%clk 0:01:27.2]} 35... Kd7 {[%clk
0:00:02.5]} 36. Rxa6 {[%clk 0:01:23.3]} 36... Qg8 {[%clk 0:00:02.3]} 37. Kf2
{[%clk 0:01:10.1]} 37... Qxg2+ {[%clk 0:00:02.2]} 38. Kxe3 {[%clk 0:01:08.3]}
38... Qe4+ {[%clk 0:00:00.6]} 39. Kd2 {[%clk 0:01:06.5]} 1-0

[Event "Live Chess"]
[Site "Chess.com"]
[Date "2023.05.21"]
[Round "-"]
[White "jimwad"]
[Black "karimghalambaz"]
[Result "0-1"]
[WhiteElo "1209"]
[BlackElo "1280"]
[TimeControl "300"]
[EndTime "16:49:54 PDT"]
[Termination "karimghalambaz won by resignation"]

1. c4 {[%clk 0:04:58.5]} 1... c5 {[%clk 0:04:56]} 2. g3 {[%clk 0:04:57.3]} 2...
Nf6 {[%clk 0:04:54.4]} 3. Bg2 {[%clk 0:04:56.3]} 3... g6 {[%clk 0:04:53.2]} 4.
Nc3 {[%clk 0:04:55]} 4... Bg7 {[%clk 0:04:51.7]} 5. e3 {[%clk 0:04:54.1]} 5...
O-O {[%clk 0:04:49.9]} 6. Nge2 {[%clk 0:04:53.1]} 6... Nc6 {[%clk 0:04:46.5]} 7.
O-O {[%clk 0:04:51.6]} 7... a6 {[%clk 0:04:45.1]} 8. d4 {[%clk 0:04:50.5]} 8...
cxd4 {[%clk 0:04:43.4]} 9. exd4 {[%clk 0:04:49.5]} 9... Rb8 {[%clk 0:04:40.1]}
10. a3 {[%clk 0:04:46.2]} 10... b5 {[%clk 0:04:36.8]} 11. c5 {[%clk 0:04:44.2]}
11... d6 {[%clk 0:04:33.8]} 12. b4 {[%clk 0:04:42.7]} 12... dxc5 {[%clk
0:04:31.4]} 13. dxc5 {[%clk 0:04:40.5]} 13... Qxd1 {[%clk 0:04:28.9]} 14. Rxd1
{[%clk 0:04:39.2]} 14... Bf5 {[%clk 0:04:21.1]} 15. Bf4 {[%clk 0:04:37.5]} 15...
Rbc8 {[%clk 0:04:18]} 16. Nd5 {[%clk 0:04:31.4]} 16... Nxd5 {[%clk 0:04:11.4]}
17. Bxd5 {[%clk 0:04:20.3]} 17... Bxa1 {[%clk 0:04:08.4]} 18. Rxa1 {[%clk
0:04:19.2]} 18... e6 {[%clk 0:04:06.6]} 19. Bxc6 {[%clk 0:04:13.6]} 19... Rxc6
{[%clk 0:04:04.6]} 20. Nd4 {[%clk 0:04:12.4]} 20... Rcc8 {[%clk 0:03:58.6]} 21.
Nxf5 {[%clk 0:04:09.1]} 21... exf5 {[%clk 0:03:56.6]} 22. Rc1 {[%clk 0:04:07.3]}
22... Rfe8 {[%clk 0:03:52.6]} 23. Kg2 {[%clk 0:04:03.1]} 23... Re2 {[%clk
0:03:49.3]} 24. Kf3 {[%clk 0:04:00.1]} 24... Ra2 {[%clk 0:03:45.2]} 25. Rc3
{[%clk 0:03:57.9]} 25... Kg7 {[%clk 0:03:40.6]} 26. Be5+ {[%clk 0:03:54.9]}
26... f6 {[%clk 0:03:38.1]} 27. Bd6 {[%clk 0:03:52.7]} 27... Kf7 {[%clk
0:03:35.2]} 28. h4 {[%clk 0:03:49.9]} 28... Ke6 {[%clk 0:03:32.8]} 29. Re3+
{[%clk 0:03:46]} 29... Kd7 {[%clk 0:03:29.2]} 30. Kf4 {[%clk 0:03:40.6]} 30...
Re8 {[%clk 0:03:25.6]} 31. Rxe8 {[%clk 0:03:37.2]} 31... Kxe8 {[%clk 0:03:23.2]}
32. f3 {[%clk 0:03:36.2]} 32... Kd7 {[%clk 0:03:19.2]} 33. g4 {[%clk 0:03:34.3]}
33... fxg4 {[%clk 0:03:16.8]} 34. fxg4 {[%clk 0:03:31.9]} 34... Rxa3 {[%clk
0:03:13]} 35. g5 {[%clk 0:03:30.5]} 35... f5 {[%clk 0:03:10.4]} 36. h5 {[%clk
0:03:27.6]} 36... Rb3 {[%clk 0:03:07.2]} 37. hxg6 {[%clk 0:03:26.2]} 37... hxg6
{[%clk 0:03:04.7]} 38. Ke5 {[%clk 0:03:23.7]} 38... Re3+ {[%clk 0:02:53.3]} 39.
Kf6 {[%clk 0:03:22]} 39... Re6+ {[%clk 0:02:42.9]} 40. Kf7 {[%clk 0:03:17]}
40... Rxd6 {[%clk 0:02:39.7]} 41. cxd6 {[%clk 0:03:16]} 41... f4 {[%clk
0:02:37.5]} 42. Kxg6 {[%clk 0:03:15]} 42... f3 {[%clk 0:02:35.9]} 43. Kf7 {[%clk
0:03:14.4]} 43... f2 {[%clk 0:02:34.4]} 44. g6 {[%clk 0:03:14.3]} 44... f1=Q+
{[%clk 0:02:32.5]} 45. Kg8 {[%clk 0:03:13]} 45... Kxd6 {[%clk 0:02:28.3]} 46. g7
{[%clk 0:03:12]} 46... Ke7 {[%clk 0:02:26]} 47. Kh8 {[%clk 0:03:10.8]} 47...
Qh3+ {[%clk 0:02:22.5]} 48. Kg8 {[%clk 0:03:09.6]} 48... Qg4 {[%clk 0:02:19]}
49. Kh8 {[%clk 0:03:08.4]} 49... Qh5+ {[%clk 0:02:16.9]} 50. Kg8 {[%clk
0:03:07.4]} 50... Qg6 {[%clk 0:02:15]} 51. Kh8 {[%clk 0:03:06.3]} 51... Kf7
{[%clk 0:02:10.6]} 0-1

[Event "Live Chess"]
[Site "Chess.com"]
[Date "2023.05.21"]
[Round "-"]
[White "ShanthamGrarks"]
[Black "AbilifyXL"]
[Result "0-1"]
[WhiteElo "1995"]
[BlackElo "1951"]
[TimeControl "300"]
[EndTime "16:50:02 PDT"]
[Termination "AbilifyXL won on time"]

1. d4 {[%clk 0:04:56.5]} 1... d5 {[%clk 0:04:59.9]} 2. Nc3 {[%clk 0:04:54.4]}
2... c6 {[%clk 0:04:57.3]} 3. e4 {[%clk 0:04:52.1]} 3... dxe4 {[%clk 0:04:56.3]}
4. f3 {[%clk 0:04:50.5]} 4... Bf5 {[%clk 0:04:56.2]} 5. fxe4 {[%clk 0:04:49.1]}
5... Bg6 {[%clk 0:04:55.4]} 6. Nf3 {[%clk 0:04:47.1]} 6... Nd7 {[%clk
0:04:53.8]} 7. Bd3 {[%clk 0:04:46.3]} 7... e6 {[%clk 0:04:53.1]} 8. O-O {[%clk
0:04:45.2]} 8... Ngf6 {[%clk 0:04:52.4]} 9. Bg5 {[%clk 0:04:44.2]} 9... Be7
{[%clk 0:04:51.3]} 10. e5 {[%clk 0:04:41.9]} 10... Nd5 {[%clk 0:04:49.6]} 11.
Bxe7 {[%clk 0:04:40.7]} 11... Qxe7 {[%clk 0:04:48.6]} 12. Bxg6 {[%clk
0:04:32.7]} 12... hxg6 {[%clk 0:04:46.9]} 13. Ne4 {[%clk 0:04:31.6]} 13... O-O
{[%clk 0:04:45.2]} 14. Qe1 {[%clk 0:04:24.3]} 14... c5 {[%clk 0:04:43.5]} 15. c3
{[%clk 0:04:14.1]} 15... cxd4 {[%clk 0:04:42.3]} 16. cxd4 {[%clk 0:04:12.6]}
16... Rac8 {[%clk 0:04:34.9]} 17. Nd6 {[%clk 0:04:11]} 17... Rc2 {[%clk
0:04:32.2]} 18. b3 {[%clk 0:04:02]} 18... Nf4 {[%clk 0:04:20.6]} 19. Nd2 {[%clk
0:03:35.9]} 19... Qg5 {[%clk 0:03:59.7]} 20. Rxf4 {[%clk 0:03:07.4]} 20... Qxf4
{[%clk 0:03:56.8]} 21. Nf3 {[%clk 0:03:06.7]} 21... Nb6 {[%clk 0:03:42.4]} 22.
Qd1 {[%clk 0:02:47.8]} 22... Qe3+ {[%clk 0:03:36.4]} 23. Kh1 {[%clk 0:02:46]}
23... Qf2 {[%clk 0:03:34.4]} 24. Qg1 {[%clk 0:02:41]} 24... Rxa2 {[%clk
0:03:33.2]} 25. Qxf2 {[%clk 0:02:29]} 25... Rxf2 {[%clk 0:03:31.8]} 26. Kg1
{[%clk 0:02:27.5]} 26... Rb2 {[%clk 0:03:29.6]} 27. Rxa7 {[%clk 0:02:26.3]}
27... Rxb3 {[%clk 0:03:28.7]} 28. Rxb7 {[%clk 0:02:25.1]} 28... Rb2 {[%clk
0:03:25.7]} 29. Ng5 {[%clk 0:02:15.3]} 29... Nc4 {[%clk 0:03:20.7]} 30. Rxf7
{[%clk 0:01:59.5]} 30... Nxd6 {[%clk 0:02:58.8]} 31. Rxf8+ {[%clk 0:01:54.2]}
31... Kxf8 {[%clk 0:02:57.6]} 32. exd6 {[%clk 0:01:53.4]} 32... Ke8 {[%clk
0:02:47]} 33. Nxe6 {[%clk 0:01:52.2]} 33... Kd7 {[%clk 0:02:46]} 34. Nxg7 {[%clk
0:01:47.7]} 34... Kxd6 {[%clk 0:02:45.2]} 35. h4 {[%clk 0:01:43.1]} 35... Rd2
{[%clk 0:02:43.5]} 36. h5 {[%clk 0:01:41.9]} 36... gxh5 {[%clk 0:02:42.6]} 37.
Nxh5 {[%clk 0:01:41]} 37... Rxd4 {[%clk 0:02:41.3]} 38. Ng3 {[%clk 0:01:40.2]}
38... Ke5 {[%clk 0:02:38.4]} 39. Ne2 {[%clk 0:01:36.5]} 39... Rd2 {[%clk
0:02:34.2]} 40. Kf2 {[%clk 0:01:35.3]} 40... Ra2 {[%clk 0:02:33]} 41. Kf3 {[%clk
0:01:33.7]} 41... Kf5 {[%clk 0:02:31]} 42. g3 {[%clk 0:01:32.5]} 42... Ra3+
{[%clk 0:02:29.8]} 43. Kf2 {[%clk 0:01:28.7]} 43... Kg4 {[%clk 0:02:29]} 44. Kg2
{[%clk 0:01:17.2]} 44... Ra2 {[%clk 0:02:27.1]} 45. Kf2 {[%clk 0:01:15.2]} 45...
Rb2 {[%clk 0:02:26.3]} 46. Ke3 {[%clk 0:01:13.4]} 46... Rb1 {[%clk 0:02:23.5]}
47. Kf2 {[%clk 0:01:10.8]} 47... Ra1 {[%clk 0:02:21.3]} 48. Ke3 {[%clk
0:01:09.7]} 48... Rf1 {[%clk 0:02:19.5]} 49. Kd3 {[%clk 0:01:01.8]} 49... Kf3
{[%clk 0:02:15.3]} 50. Nd4+ {[%clk 0:00:51]} 50... Kxg3 {[%clk 0:02:14.1]} 51.
Ke4 {[%clk 0:00:50.1]} 51... Re1+ {[%clk 0:02:11.1]} 52. Kd3 {[%clk 0:00:48.3]}
52... Rd1+ {[%clk 0:02:08.6]} 53. Ke3 {[%clk 0:00:46.7]} 53... Ra1 {[%clk
0:02:06.8]} 54. Nf5+ {[%clk 0:00:44.6]} 54... Kg4 {[%clk 0:02:05.7]} 55. Nh6+
{[%clk 0:00:42.5]} 55... Kg5 {[%clk 0:02:04.1]} 56. Nf7+ {[%clk 0:00:41.6]}
56... Kf6 {[%clk 0:02:02.7]} 57. Nd6 {[%clk 0:00:41.1]} 57... Ra6 {[%clk
0:01:57.9]} 58. Ne4+ {[%clk 0:00:38.7]} 58... Ke5 {[%clk 0:01:56.8]} 59. Nc5
{[%clk 0:00:37.5]} 59... Ra3+ {[%clk 0:01:55.5]} 60. Kd2 {[%clk 0:00:36.7]}
60... Kd4 {[%clk 0:01:51.6]} 61. Ne6+ {[%clk 0:00:35.7]} 61... Kc4 {[%clk
0:01:49.9]} 62. Ng5 {[%clk 0:00:34.3]} 62... Rg3 {[%clk 0:01:47.6]} 63. Ne4
{[%clk 0:00:33.1]} 63... Rg2+ {[%clk 0:01:46.2]} 64. Ke3 {[%clk 0:00:32.2]}
64... Kd5 {[%clk 0:01:44.3]} 65. Nc3+ {[%clk 0:00:30.5]} 65... Ke5 {[%clk
0:01:42.9]} 66. Ne2 {[%clk 0:00:29.1]} 66... Rg8 {[%clk 0:01:39.9]} 67. Kf3
{[%clk 0:00:28.2]} 67... Rf8+ {[%clk 0:01:38.6]} 68. Ke3 {[%clk 0:00:27.8]}
68... Re8 {[%clk 0:01:37.2]} 69. Kd3 {[%clk 0:00:26.4]} 69... Kd5 {[%clk
0:01:36]} 70. Nf4+ {[%clk 0:00:24.7]} 70... Kc5 {[%clk 0:01:33.8]} 71. Kc3
{[%clk 0:00:22.5]} 71... Re3+ {[%clk 0:01:31.6]} 72. Nd3+ {[%clk 0:00:21.3]}
72... Kb5 {[%clk 0:01:30.1]} 73. Kd4 {[%clk 0:00:19.9]} 73... Rh3 {[%clk
0:01:28.9]} 74. Nf4 {[%clk 0:00:19.1]} 74... Rh4 {[%clk 0:01:27.8]} 75. Ke5
{[%clk 0:00:18.8]} 75... Kc4 {[%clk 0:01:26.7]} 76. Ng6 {[%clk 0:00:16.9]} 76...
Rh5+ {[%clk 0:01:25.1]} 77. Kf6 {[%clk 0:00:16.5]} 77... Rh1 {[%clk 0:01:23.9]}
78. Nf4 {[%clk 0:00:15.9]} 78... Rf1 {[%clk 0:01:22.7]} 79. Ke5 {[%clk
0:00:15.4]} 79... Re1+ {[%clk 0:01:20.4]} 80. Kf5 {[%clk 0:00:14.2]} 80... Re8
{[%clk 0:01:15.5]} 81. Ng6 {[%clk 0:00:12.2]} 81... Kc5 {[%clk 0:01:11.1]} 82.
Kf6 {[%clk 0:00:10.6]} 82... Kd5 {[%clk 0:01:08.4]} 83. Nf4+ {[%clk 0:00:09.4]}
83... Ke4 {[%clk 0:01:07.4]} 84. Ng6 {[%clk 0:00:09.3]} 84... Rb8 {[%clk
0:01:05]} 85. Kg5 {[%clk 0:00:08.9]} 85... Rb5+ {[%clk 0:01:03.9]} 86. Kg4
{[%clk 0:00:08.4]} 86... Rb4 {[%clk 0:01:01.9]} 87. Ne7 {[%clk 0:00:07.6]} 87...
Ke5+ {[%clk 0:00:59.7]} 88. Kg5 {[%clk 0:00:06.7]} 88... Ke6 {[%clk 0:00:58.2]}
89. Ng6 {[%clk 0:00:06.4]} 89... Rb5+ {[%clk 0:00:56.9]} 90. Kg4 {[%clk
0:00:04.8]} 90... Kf6 {[%clk 0:00:55.9]} 91. Nf4 {[%clk 0:00:04.4]} 91... Rb4
{[%clk 0:00:54.1]} 92. Kf3 {[%clk 0:00:04.3]} 92... Kf5 {[%clk 0:00:53.1]} 93.
Nd5 {[%clk 0:00:04.1]} 93... Rb3+ {[%clk 0:00:51.8]} 94. Ke2 {[%clk 0:00:03.4]}
94... Ke4 {[%clk 0:00:50.9]} 95. Nf6+ {[%clk 0:00:02.9]} 95... Ke5 {[%clk
0:00:49.1]} 96. Ng4+ {[%clk 0:00:02.5]} 96... Kf4 {[%clk 0:00:48.1]} 97. Nf6
{[%clk 0:00:01.6]} 97... Re3+ {[%clk 0:00:46.8]} 98. Kd2 {[%clk 0:00:00.3]}
98... Re6 {[%clk 0:00:45.6]} 0-1

[Event "Live Chess"]
[Site "Chess.com"]
[Date "2023.05.21"]
[Round "-"]
[White "Baturin_Yevgeniy"]
[Black "Olisingapore"]
[Result "1-0"]
[WhiteElo "1800"]
[BlackElo "1818"]
[TimeControl "300"]
[EndTime "16:50:02 PDT"]
[Termination "Baturin_Yevgeniy won by resignation"]

1. d4 {[%clk 0:04:51.3]} 1... Nf6 {[%clk 0:04:56.9]} 2. c3 {[%clk 0:04:49.5]}
2... d5 {[%clk 0:04:54.5]} 3. Qb3 {[%clk 0:04:48.4]} 3... c5 {[%clk 0:04:50.6]}
4. Nf3 {[%clk 0:04:42.6]} 4... Bf5 {[%clk 0:04:49.6]} 5. Qxb7 {[%clk 0:04:40.2]}
5... Nbd7 {[%clk 0:04:42.6]} 6. dxc5 {[%clk 0:04:04.1]} 6... Nxc5 {[%clk
0:04:38.2]} 7. Qc6+ {[%clk 0:04:02.9]} 7... Ncd7 {[%clk 0:04:36.2]} 8. Bg5
{[%clk 0:03:47.7]} 8... Rc8 {[%clk 0:04:15.2]} 9. Qa4 {[%clk 0:03:36.1]} 9...
Qb6 {[%clk 0:04:08.1]} 10. Qb3 {[%clk 0:03:15.3]} 10... e6 {[%clk 0:03:43.9]}
11. Bxf6 {[%clk 0:02:46.4]} 11... Nxf6 {[%clk 0:03:36.5]} 12. e3 {[%clk
0:02:36.9]} 12... Rb8 {[%clk 0:03:10.3]} 13. Qa4+ {[%clk 0:02:22]} 13... Nd7
{[%clk 0:03:00.1]} 14. b4 {[%clk 0:02:12.2]} 14... Qc7 {[%clk 0:02:58.1]} 15.
Bb5 {[%clk 0:01:58.3]} 15... Bxb1 {[%clk 0:02:35.4]} 16. Bxd7+ {[%clk
0:01:54.6]} 16... Qxd7 {[%clk 0:02:32.9]} 17. Qxd7+ {[%clk 0:01:52.3]} 17...
Kxd7 {[%clk 0:02:32.8]} 18. Rxb1 {[%clk 0:01:50.8]} 18... a5 {[%clk 0:02:30.2]}
19. Ne5+ {[%clk 0:01:48.2]} 19... Kd6 {[%clk 0:02:22.1]} 20. Nxf7+ {[%clk
0:01:46.1]} 20... Ke7 {[%clk 0:02:20.3]} 21. Nxh8 {[%clk 0:01:43.5]} 21... axb4
{[%clk 0:02:16.4]} 22. Rxb4 {[%clk 0:01:36.9]} 22... Kf6 {[%clk 0:02:15.9]} 23.
Rxb8 {[%clk 0:01:34.5]} 1-0

[Event "Live Chess"]
[Site "Chess.com"]
[Date "2023.05.21"]
[Round "-"]
[White "John_Warren"]
[Black "Conradical12"]
[Result "1-0"]
[WhiteElo "1299"]
[BlackElo "1581"]
[TimeControl "300"]
[EndTime "16:50:06 PDT"]
[Termination "John_Warren won by resignation"]

1. e4 {[%clk 0:04:52.8]} 1... e5 {[%clk 0:04:59.5]} 2. Nf3 {[%clk 0:04:50.9]}
2... Nc6 {[%clk 0:04:59]} 3. Bc4 {[%clk 0:04:49]} 3... Nf6 {[%clk 0:04:58.6]} 4.
Nc3 {[%clk 0:04:47]} 4... Nxe4 {[%clk 0:04:56.6]} 5. Nxe4 {[%clk 0:04:44.6]}
5... d5 {[%clk 0:04:56.3]} 6. Bd3 {[%clk 0:04:37.8]} 6... dxe4 {[%clk 0:04:55]}
7. Bxe4 {[%clk 0:04:35.9]} 7... f5 {[%clk 0:04:54]} 8. Bxc6+ {[%clk 0:04:31.7]}
8... bxc6 {[%clk 0:04:52.5]} 9. Nxe5 {[%clk 0:04:27.4]} 9... Be7 {[%clk
0:04:45.2]} 10. Nxc6 {[%clk 0:04:22.5]} 10... Qd5 {[%clk 0:04:43.5]} 11. Nxe7
{[%clk 0:04:18.6]} 11... Qxg2 {[%clk 0:04:38.8]} 12. Rf1 {[%clk 0:04:07.3]}
12... Ba6 {[%clk 0:04:36.2]} 13. d3 {[%clk 0:04:03.5]} 13... Kxe7 {[%clk
0:04:34.3]} 14. Be3 {[%clk 0:04:00.2]} 14... Bc8 {[%clk 0:04:29.6]} 15. Qh5
{[%clk 0:03:46.9]} 15... g6 {[%clk 0:04:27.6]} 16. Qe2 {[%clk 0:03:35.3]} 16...
Kf7 {[%clk 0:04:23.9]} 17. O-O-O {[%clk 0:03:32.3]} 17... Re8 {[%clk 0:04:23.4]}
18. Qd2 {[%clk 0:03:23.6]} 18... Bb7 {[%clk 0:04:20.4]} 19. Qb4 {[%clk
0:03:05.9]} 19... Bf3 {[%clk 0:04:16.4]} 20. Qc4+ {[%clk 0:02:54.4]} 20... Bd5
{[%clk 0:04:14.4]} 21. Qxc7+ {[%clk 0:02:46]} 21... Re7 {[%clk 0:04:13.3]} 22.
Qg3 {[%clk 0:02:34.7]} 22... Qxg3 {[%clk 0:04:01.8]} 23. hxg3 {[%clk 0:02:30.2]}
23... Rc7 {[%clk 0:04:01.4]} 24. b3 {[%clk 0:02:20.6]} 24... Rac8 {[%clk
0:03:59.3]} 25. c4 {[%clk 0:02:12.8]} 25... Bf3 {[%clk 0:03:57.6]} 26. Rd2
{[%clk 0:02:10]} 26... a5 {[%clk 0:03:54.9]} 27. d4 {[%clk 0:02:03]} 27... a4
{[%clk 0:03:53.2]} 28. d5 {[%clk 0:01:57.6]} 28... axb3 {[%clk 0:03:51.8]} 29.
axb3 {[%clk 0:01:55.4]} 29... Ra7 {[%clk 0:03:48]} 30. Rb2 {[%clk 0:01:37.2]}
30... Ra3 {[%clk 0:03:38.7]} 31. d6 {[%clk 0:01:30.1]} 1-0

[Event "Live Chess"]
[Site "Chess.com"]
[Date "2023.05.21"]
[Round "-"]
[White "Tushinskiy"]
[Black "ExIsambard"]
[Result "1-0"]
[WhiteElo "2172"]
[BlackElo "1930"]
[TimeControl "300"]
[EndTime "16:50:08 PDT"]
[Termination "Tushinskiy won by resignation"]

1. d4 {[%clk 0:04:58.5]} 1... Nf6 {[%clk 0:04:59]} 2. c3 {[%clk 0:04:58.4]} 2...
e5 {[%clk 0:04:57.9]} 3. dxe5 {[%clk 0:04:55.9]} 3... Ng4 {[%clk 0:04:57.1]} 4.
Nf3 {[%clk 0:04:55.1]} 4... d6 {[%clk 0:04:50.5]} 5. Bf4 {[%clk 0:04:52.3]} 5...
Nc6 {[%clk 0:04:42.6]} 6. exd6 {[%clk 0:04:50.3]} 6... cxd6 {[%clk 0:04:39.2]}
7. e3 {[%clk 0:04:47.9]} 7... Be6 {[%clk 0:04:37.4]} 8. Nbd2 {[%clk 0:04:46.9]}
8... Qb6 {[%clk 0:04:35.3]} 9. Qc2 {[%clk 0:04:43.1]} 9... O-O-O {[%clk
0:04:33.4]} 10. Nc4 {[%clk 0:04:41.1]} 10... Bxc4 {[%clk 0:04:31.5]} 11. Bxc4
{[%clk 0:04:41]} 11... Re8 {[%clk 0:04:14.1]} 12. Qf5+ {[%clk 0:04:37.8]} 1-0